[Event "NED-ch U20 Youth 2019"]
[Site "Assen"]
[Date "2019.05.04"]
[Round "7.9"]
[White "Achuthan, Dylan"]
[Black "Van Aken, Jelmer"]
[Result "1/2-1/2"]
[ECO "B50"]
[WhiteElo "1863"]
[BlackElo "1698"]
[Annotator "NA RC"]
[PlyCount "89"]
[EventDate "2019.04.28"]
[EventType "swiss"]
[EventCountry "NED"]
[SourceTitle "playchess.com"]
[Source "ChessBase"]
[SourceQuality "1"]
[TimeControl "40/5400+30:1800+30"]

{[%evp 8,81,47,32767,32767,32767,32767,32767,32767,32767,32767,32767,-50,-65,-54,-107,-83,-81,-80,-93,-79,-175,-160,-416,-440,32767,-237,32767,32767,32767,32767,-283,32767,32767,-253,-279,-294,32767,32767,-288,-295,-287,-280,-286,-275,-310,-293,32767,-272,-275,-196,32767,-202,-198,-138,-144,32767,-106,-90,32767,32767,32767,-85,-107,32767,32767,-117,32767,32767,32767,32767,32767,-11,32767,32767,0]} 1. e4 {[%emt 0:00:00]} c5 {[%emt 0:00:00]} 2. Nf3 {[%emt 0:00:00]} d6 {[%emt 0:00:00]} 3. c3 {[%emt 0:00:00]} Nf6 {[%emt 0:00:00]} 4. Be2 {[%emt 0:00:00]} Nbd7 {[%emt 0:00:00]} 5. d3 {[%emt 0:00:26]} b6 {[%emt 0:01:08]} 6. O-O {[%emt 0:01:05]} Bb7 {[%emt 0:00:17]} 7. h3 {[%emt 0:02:26] B50: Sicilian: 2...d6, Miscellaneous} (7. Re1 e5 8. Nbd2 Be7 9. d4 cxd4 10. cxd4 exd4 11. Nxd4 O-O 12. Nf5 Re8 13. Bb5 Bf8 14. Nc4 Nxe4 15. Qg4 {0-1 (52) Gholami,A (2492)-Jumabayev,R (2594) Hamedan 2018}) 7... e6 {[%emt 0:02:52]} 8. Be3 {[%emt 0:00:49]} Be7 {[%emt 0:00:22]} 9. Nh2 $146 {[%emt 0:03:46]} ({Predecessor:} 9. Nbd2 O-O 10. Qc2 Qc7 11. d4 cxd4 12. Nxd4 a6 13. f4 Rac8 {0-1 (36) Hakobyan,H (1760)-Chukavin,K (2164) Batumi 2014}) 9... d5 {[%emt 0:03:06]} 10. exd5 {[%emt 0:06:17]} Nxd5 {[%emt 0:03:45]} 11. c4 {[%emt 0:05:36]} Nxe3 {[%emt 0:03:38]} 12. fxe3 {[%emt 0:00:08]} Bg5 {[%emt 0:05:23]} 13. Qd2 {[%emt 0:08:03]} Ne5 {[%emt 0:09:45]} 14. Ng4 {[%emt 0:20:19]} (14. Bf3 $17 {might work better.} Rb8 15. Rd1) 14... Qc7 {[%emt 0:04:04]} 15. d4 $2 {[%emt 0:15:43]} (15. Nc3) 15... Nxg4 {[%emt 0:04:32]} ({Less strong is} 15... cxd4 16. Qxd4 Nxg4 17. Qxg4 $19) 16. Bxg4 {[%emt 0:04:58]} Rd8 {[%emt 0:01:48]} (16... cxd4 $142 17. Qe1 Bxe3+ 18. Kh1 Qxc4) 17. Qf2 {[%emt 0:11:09]} cxd4 {[%emt 0:04:48]} 18. exd4 {[%emt 0:00:43]} Bf6 {[%emt 0:00:20]} 19. d5 {[%emt 0:03:06]} Qxc4 {[%emt 0:02:06]} 20. Kh1 {[%emt 0:05:04]} Qxd5 {[%emt 0:03:33]} 21. Nc3 {[%emt 0:01:15]} Qd2 {[%emt 0:04:40]} 22. Bf3 {[%emt 0:05:39]} Qxf2 {[%emt 0:02:24]} 23. Rxf2 {[%emt 0:00:02]} Bxf3 {[%emt 0:00:10]} 24. Rxf3 {[%emt 0:00:10]} Ke7 {[%emt 0:02:19]} 25. Raf1 {[%emt 0:00:43]} Rhf8 {[%emt 0:01:19]} 26. Nb5 {[%emt 0:02:15]} Rd7 {[%emt 0:02:15]} ({Resist} 26... Bxb2 27. Nxa7 Rd2 28. a4 $19) 27. R1f2 {[%emt 0:00:48]} Rfd8 {[%emt 0:02:58]} 28. g4 {[%emt 0:00:37]} a6 {[%emt 0:01:54]} 29. g5 {[%emt 0:01:02]} axb5 {[%emt 0:05:22]} 30. gxf6+ {[%emt 0:00:02]} gxf6 {[%emt 0:00:32]} 31. Rxf6 {[%emt 0:00:08]} Rd1+ {[%emt 0:01:02]} 32. Kh2 {[%emt 0:00:30]} Rf8 {[%emt 0:01:24]} 33. Rh6 {[%emt 0:02:05]} Rd6 {[%emt 0:04:05]} 34. Rxh7 {[%emt 0:01:00]} e5 {[%emt 0:25:09]} 35. Rh5 {[%emt 0:00:34]} Ke6 {[%emt 0:00:00]} 36. Rhf5 {[%emt 0:00:26]} f6 {[%emt 0:00:00]} 37. h4 {[%emt 0:00:26]} e4 {[%emt 0:00:00]} 38. Rxb5 {[%emt 0:01:07]} f5 {[%emt 0:00:00]} 39. Rb4 {[%emt 0:00:28]} e3 $11 {[%emt 0:00:00]} (39... Ke5 $19 40. Kg2 Rg8+ 41. Kh3 e3 42. Rb5+ Ke4 43. Rfxf5 Re8) 40. Rf1 {[%emt 0:00:27]} Rd2+ {[%emt 0:00:00]} 41. Kg3 {[%emt 0:01:22]} f4+ {[%emt 0:00:00]} 42. Rbxf4 {[%emt 0:12:38]} Rxf4 {[%emt 0:00:00]} 43. Rxf4 {[%emt 0:00:15]} Ke5 {[%emt 0:00:37]} 44. Rd4 {[%emt 0:18:23]} Rf2 {[%emt 0:07:15]} 45. Rb4 {[%emt 0:00:03]} 1/2-1/2

[Event "NED-ch U20 Youth 2019"]
[Site "Assen"]
[Date "2019.05.04"]
[Round "7.10"]
[White "Emans, Job"]
[Black "Gijsen, William"]
[Result "1/2-1/2"]
[ECO "D45"]
[WhiteElo "1945"]
[BlackElo "2041"]
[Annotator "NA RC"]
[PlyCount "90"]
[EventDate "2019.04.28"]
[EventType "swiss"]
[EventCountry "NED"]
[SourceTitle "playchess.com"]
[Source "ChessBase"]
[SourceQuality "1"]
[TimeControl "40/5400+30:1800+30"]

{[%evp 14,88,20,32767,32767,32767,0,0,0,0,64,0,59,-6,2,-18,-8,32767,-16,-50,89,85,82,63,77,47,87,59,58,59,69,72,75,74,68,68,32767,32767,88,32767,32767,37,32767,32767,24,32767,54,32767,32767,10,32767,0,32767,0,32767,32767,32767,0,32767,-9,0,-7,0,-15,-14,0,32767,0,0,0,0,32767,32767,32767,32767,0,0]} 1. d4 {[%emt 0:00:00]} d5 {[%emt 0:00:00]} 2. c4 {[%emt 0:00:00]} c6 {[%emt 0:00:00]} 3. Nc3 {[%emt 0:00:03]} Nf6 {[%emt 0:00:00]} 4. Nf3 {[%emt 0:00:11]} e6 {[%emt 0:00:00]} 5. e3 {[%emt 0:00:52]} a6 {[%emt 0:00:00]} 6. Qc2 {[%emt 0:02:03]} c5 {[%emt 0:00:09]} 7. cxd5 {[%emt 0:05:45]} exd5 {[%emt 0:00:10]} 8. g3 {[%emt 0:02:07] D45: Semi-Slav: 5 e3} (8. Be2 Nc6 9. O-O Be6 10. Ne5 Qc7 11. Nxc6 bxc6 12. e4 dxe4 13. Nxe4 Nxe4 14. Qxe4 Bd6 15. Bf3 O-O 16. Qxc6 Bxh2+ {1-0 (60) Mamedyarov,S (2817)-Shankland,S (2724) Germany 2019}) 8... Nc6 {[%emt 0:00:15]} 9. Bg2 {[%emt 0:01:45]} Nb4 {[%emt 0:11:55]} 10. Qd1 {[%emt 0:17:17]} Bf5 {[%emt 0:01:11]} 11. O-O {[%emt 0:00:27]} c4 {[%emt 0:07:56]} (11... Bd3 $11) 12. Ne1 {[%emt 0:04:06]} (12. a3 $14 Nd3 13. Ne5) 12... Be7 {[%emt 0:04:06]} (12... h5 $11) 13. a3 {[%emt 0:06:42]} (13. f3 $14) 13... Nd3 $146 {[%emt 0:06:17]} ({Predecessor:} 13... Nc6 14. Nf3 O-O 15. Nd2 b5 {0-1 (41) Nolte,R (2417)-Nguyen,H (2474) Jakarta 2014}) 14. Nxd3 {[%emt 0:01:05]} Bxd3 {[%emt 0:00:15]} 15. Re1 {[%emt 0:00:29]} O-O {[%emt 0:00:34]} 16. Qf3 {[%emt 0:02:40]} Re8 {[%emt 0:02:17]} (16... Ne4 $15 {keeps the upper hand.}) 17. Nxd5 {[%emt 0:07:43]} Be4 {[%emt 0:03:33]} 18. Nxf6+ {[%emt 0:00:26]} Bxf6 {[%emt 0:00:14]} 19. Qd1 {[%emt 0:01:10]} Bxg2 {[%emt 0:00:30]} 20. Kxg2 {[%emt 0:00:13]} Qd5+ {[%emt 0:00:15]} 21. Kg1 {[%emt 0:02:24]} Re6 {[%emt 0:01:54]} 22. Bd2 {[%emt 0:01:59]} h5 {[%emt 0:00:28]} 23. Bc3 {[%emt 0:05:57]} Rae8 {[%emt 0:00:32]} 24. Re2 {[%emt 0:02:45]} h4 {[%emt 0:00:45]} 25. Qf1 {[%emt 0:00:55]} Qf5 {[%emt 0:03:26]} 26. Rae1 {[%emt 0:04:14]} Bg5 {[%emt 0:02:38]} 27. f4 {[%emt 0:03:17]} Bd8 {[%emt 0:00:22]} 28. Qf3 {[%emt 0:00:43]} Re4 $1 {[%emt 0:00:41]} 29. g4 {[%emt 0:01:10]} Qe6 {[%emt 0:03:33]} 30. h3 {[%emt 0:03:50]} Bc7 {[%emt 0:01:30]} 31. Kf1 {[%emt 0:04:38]} g5 {[%emt 0:01:36]} 32. f5 {[%emt 0:01:58]} Qd5 {[%emt 0:01:26]} 33. Kg2 {[%emt 0:01:37]} b5 {[%emt 0:02:24]} 34. Rf1 {[%emt 0:02:31]} f6 {[%emt 0:00:59]} 35. Ra1 {[%emt 0:01:49]} a5 {[%emt 0:00:12]} 36. Be1 {[%emt 0:00:44]} Qd6 {[%emt 0:01:30]} 37. Kg1 {[%emt 0:01:14]} Bb6 {[%emt 0:02:23]} 38. Rd1 {[%emt 0:05:47]} Qd5 {[%emt 0:02:02]} 39. Kf2 {[%emt 0:02:02]} Kf7 {[%emt 0:01:41]} 40. Bc3 {[%emt 0:00:59]} Bc7 {[%emt 0:00:13]} 41. Kg2 {[%emt 0:31:29]} R8e7 {[%emt 0:36:26]} 42. Ra1 {[%emt 0:02:51]} Ke8 {[%emt 0:00:31]} 43. Rd1 {[%emt 0:00:58]} Kd7 {[%emt 0:00:07]} 44. Ra1 {[%emt 0:00:00]} Kc6 $11 {[%emt 0:00:00]} 45. Rd1 {[%emt 0:00:00]} Kd7 {[%emt 0:00:00]} 1/2-1/2